Cogmind - Beta 16 @@@ ROGUE MODE // 2026.02.10 @ 13:22:47 Player: dylanbksp Result: Destroyed by H-55 Commando with Gauss Rifle Performance ------------- Evolutions (2) 1000 Regions Visited (5) 1000 Robots Destroyed (33) 165 Value Destroyed (1102) 1102 Prototype IDs (25) 500 Alien Tech Used (0) 0 Bonus (300) 300 TOTAL SCORE: 4067 Bonus ------- Aligned with FarCom 300 Cogmind --------- Core Integrity 0/550 Matter 300/300 Energy 1765/1765 System Corruption 0% Temperature Cool (0) Movement Core (350) Ox6 Location -8/Materials Parts ------- > --- POWER (2) -------- Improved Ion Engine > --- PROPULSION (2) --- (None) > --- UTILITY (4) ------ Small Storage Unit Superbattery Targeting Computer > --- WEAPON (3) ------- Assault Cannon > --- INVENTORY (8) ---- Aluminum Leg Aluminum Leg Improved Flight Unit Heat Sink Heavy Particle Cannon Faulty Enhanced Autogun Improved Light Cannon Mining Laser Peak State ------------ > --- POWER ------------ Improved Ion Engine Light Nuclear Core > --- PROPULSION ------- Aluminum Leg Aluminum Leg > --- UTILITY ---------- Small Storage Unit Superbattery Targeting Computer Light Armor Plating > --- WEAPON ----------- Shock Rifle Medium Laser Assault Cannon > --- INVENTORY -------- Aluminum Leg Improved Flight Unit Heat Sink Heavy Particle Cannon Improved Light Cannon Mining Laser [Rating: 28] Favorites ----------- Power Ion Engine Engine Ion Engine Power Core Light Nuclear Core Propulsion Aluminum Leg Leg Aluminum Leg Wheel Wheel Hover Unit Hover Unit Flight Unit Improved Flight Unit Utility Small Storage Unit Device Heat Sink Storage Small Storage Unit Processor Targeting Computer Protection Light Armor Plating Weapon Medium Laser Energy Gun Medium Laser Ballistic Gun Assault Rifle Ballistic Cannon Assault Cannon Launcher Grenade Launcher Build | -11 -10 -10 -10 -9 -8 ------- Run | Yrd Mat Min Exi Min Mat Slots Evolved 4 | . . . . . 4 Power 1 | . . . . . 1 Propulsion . | . . . . . . Utility 2 | . . . . . 2 Weapon 1 | . . . . . 1 Parts Attached 33 | 6 2 3 1 . 21 Power 5 | 1 . . . . 4 Engine 4 | 1 . . . . 3 Core 1 | . . . . . 1 Reactor . | . . . . . . Propulsion 8 | 2 . . . . 6 Treads . | . . . . . . Leg 4 | 2 . . . . 2 Wheel 2 | . . . . . 2 Hover 1 | . . . . . 1 Flight 1 | . . . . . 1 Utility 7 | 1 1 . 1 . 4 Device 2 | . . . . . 2 Storage 3 | 1 1 . 1 . . Processor 1 | . . . . . 1 Hackware . | . . . . . . Protection 1 | . . . . . 1 Artifact . | . . . . . . Weapon 13 | 2 1 3 . . 7 Energy Gun 6 | 1 . 2 . . 3 Energy Cannon . | . . . . . . Ballistic Gun 2 | 1 . . . . 1 Ballistic Cannon 1 | . . . . . 1 Launcher 4 | . 1 1 . . 2 Special Weapon . | . . . . . . Impact Weapon . | . . . . . . Slashing Weapon . | . . . . . . Piercing Weapon . | . . . . . . Special Melee Weapon . | . . . . . . Unidentified Prototypes 2 | . . . . . 2 Parts Lost 22 | . . . . . 22 Power 4 | . . . . . 4 Propulsion 5 | . . . . . 5 Utility 2 | . . . . . 2 Weapon 11 | . . . . . 11 Highest Loss Streak 11 | . . . . . 11 To Critical Strikes 1 | . . . . . 1 Average Backups 6 | 2 3 7 8 8 5 Power . | . 1 1 1 1 . Propulsion . | . . . . . . Utility 1 | . . 2 2 2 . Weapon 4 | . 1 4 5 5 4 Tool/Special . | . . . . . . Unused Backups 6 | . . . . . 6 Power . | . . . . . . Propulsion 2 | . . . . . 2 Utility . | . . . . . . Weapon 4 | . . . . . 4 Tool/Special . | . . . . . . Average Slot Usage (%) 90 | . 97 100 100 100 83 Engine 14 | . 14 14 14 14 14 Leg 16 | . 28 28 28 28 6 Device 3 | . . . . . 6 Storage 22 | . 25 28 28 28 18 Processor 4 | . . . . . 8 Energy Gun 13 | . 14 13 14 14 12 Ballistic Gun 9 | . 14 11 14 13 5 Ballistic Cannon 1 | . . . . . 2 Launcher 2 | . . 3 . . 4 Peak Build Rating 28 | 6 7 7 16 16 28 Average Rating 16 | 3 6 7 11 16 21 On Entrance 8 | . 6 7 7 16 16 Avg Prop Armor Cover (%) 6 | . . . . . 6 Naked Turns . | . . . . . . Heaviest Build 34 | 14 17 18 18 18 34 Greatest Support 20 | 20 20 20 20 20 20 Greatest Overweight (x) 9 | . . . . . 9 Average Overweight (x) 1 | . . . . . 3 Largest Inventory Capacity 8 | 8 8 8 8 8 8 Average Capacity 7 | 6 8 8 8 8 8 Most Carried 8 | 5 7 8 8 8 8 Average Carried 6 | 2 3 7 8 8 5 Final Capacity 8 | 8 8 8 8 8 8 Final Carried 8 | 2 7 8 8 8 8 Class Distribution -------------------- 58% | Mutant 25% | Skirmisher 7% | Scavenger-Skirmisher 6% | Gunner Dominant Class ---------------- Mutant | -10/Materials Mutant | -10/Mines Mutant | -10/Exiles Mutant | -9/Mines Skirmisher | -8/Materials Resources | -11 -10 -10 -10 -9 -8 ----------- Run | Yrd Mat Min Exi Min Mat Matter Collected 899 | 243 . 108 . 135 413 Remotely . | . . . . . . Salvage Created 986 | . . 21 . 108 857 Parts 45 | . . 3 . 5 37 Haulers Intercepted 1 | . . . . . 1 Recyclers Shooed 1 | . . . . . 1 Parts Field Recycled . | . . . . . . Retrieved Matter . | . . . . . . Parts Self-Destructed . | . . . . . . Prevented . | . . . . . . Parts Restored . | . . . . . . Kills | -11 -10 -10 -10 -9 -8 ------- Run | Yrd Mat Min Exi Min Mat Combat Hostiles Destroyed 24 | . . 5 . 3 16 Guns 8 | . . 1 . 1 6 Cannons 2 | . . . . . 2 AOE 14 | . . 4 . 2 8 Classes Destroyed 9 | . . 2 . 1 6 Worker 2 | . . . . . 2 Builder 1 | . . . . . 1 Hauler 1 | . . . . . 1 Recycler 1 | . . . . . 1 Watcher 4 | . . . . . 4 Swarmer 3 | . . 3 . . . Grunt 18 | . . 2 . 2 14 Brawler 2 | . . . . 1 1 Sentry 1 | . . . . . 1 Best Kill Streak 8 | . . 3 . 3 8 Combat Bots Only 5 | . . 3 . 3 5 Max Kills in Single Turn 3 | . . 1 . 2 3 Gunslinging . | . . . . . . Exploded 2 | . . 1 . 2 2 Melee . | . . . . . . Uniques/NPCs Destroyed . | . . . . . . Combat | -11 -10 -10 -10 -9 -8 -------- Run | Yrd Mat Min Exi Min Mat Hostile Shots Fired 172 | . . 36 . 6 130 Missed 47 | . . 10 . 2 35 Hits 125 | . . 26 . 4 95 Melee 1 | . . . . . 1 Projectile 124 | . . 26 . 4 94 Critical Strikes 7 | . . . . . 7 Damage Taken 2224 | . . 373 . 42 1809 Core 634 | . . 84 . . 550 Absorbed by Shields . | . . . . . . Core Remaining (%) 83 | 100 . . . 66 . Volleys Fired 60 | . . 11 . 4 45 Largest 3 | . . 2 . 2 3 Hottest 137 | . . 80 . 80 137 Shots Fired 127 | . . 22 . 8 97 Gun 91 | . . 14 . 4 73 Cannon 11 | . . . . . 11 Launcher 25 | . . 8 . 4 13 Special . | . . . . . . Kinetic 33 | . . 7 . . 26 Thermal 41 | . . 4 . 4 33 Explosive 25 | . . 8 . 4 13 Electromagnetic 28 | . . 3 . . 25 Robot Hit Streak 9 | . . 5 . 2 9 Robot Miss Streak 3 | . . 3 . 1 3 Penetration Max . | . . . . . . Secondary Targets 1 | . . . . . 1 Max Gunslinging Chain 1 | . . . . . 1 Shots Hit Robots 79 | . . 11 . 5 63 Core Hits 57 | . . 8 . 5 44 Critical Kills . | . . . . . . Critical Parts Destroyed . | . . . . . . Critical Strikes 6 | . . . . 1 5 Burn 5 | . . . . 1 4 Blast 1 | . . . . . 1 Melee Attacks . | . . . . . . Impact . | . . . . . . Slashing . | . . . . . . Piercing . | . . . . . . Sneak Attacks . | . . . . . . Combat Hostiles . | . . . . . . Follow-up Attacks . | . . . . . . Damage Inflicted 3018 | . . 540 . 208 2270 Guns 847 | . . 66 . 38 743 Cannons 143 | . . . . . 143 Explosions 2028 | . . 474 . 170 1384 Melee . | . . . . . . Ramming . | . . . . . . Kinetic 274 | . . 29 . . 245 Thermal 570 | . . 37 . 38 495 Explosive 1817 | . . 474 . 170 1173 Electromagnetic 357 | . . . . . 357 Impact . | . . . . . . Slashing . | . . . . . . Piercing . | . . . . . . Highest Corruption . | . . . . . . Average Corruption . | . . . . . . Corruption Purged . | . . . . . . Corruption Blocked . | . . . . . . Overload Shots . | . . . . . . Overflow Damage 116 | . . 36 . . 80 Projectiles . | . . . . . . Explosions 116 | . . 36 . . 80 Melee . | . . . . . . Knockbacks 1 | . . . . . 1 Impact . | . . . . . . Kinetic 1 | . . . . . 1 Secondary . | . . . . . . Self-Inflicted Damage 414 | . . 145 . . 269 Shots 14 | . . 6 . . 8 Rammed . | . . . . . . Targets Rammed . | . . . . . . Kicked . | . . . . . . Crushed . | . . . . . . Highest Temperature 608 | . . 120 . 96 608 Average Temperature 123 | . . 68 . 50 137 Received Heat Transfer 936 | . . 57 . 24 855 Effects 16 | . . . . . 16 Shutdowns 5 | . . . . . 5 Interference 1 | . . . . . 1 Short Circuit 3 | . . . . . 3 Damage (major) 6 | . . . . . 6 Damage (core) 1 | . . . . . 1 Siege Activations . | . . . . . . Martial Activations . | . . . . . . Shielding Activations . | . . . . . . Robots Disrupted . | . . . . . . Combat Hostiles . | . . . . . . Robots Corrupted . | . . . . . . Combat Hostiles . | . . . . . . Parts Fried 1 | . . . . . 1 Impact Corruptions . | . . . . . . Robots Melted . | . . . . . . Combat Hostiles . | . . . . . . Parts Melted . | . . . . . . Heat Transferred 1556 | . . 111 . 185 1260 Parts Sabotaged . | . . . . . . Parts Stolen . | . . . . . . Parts Stripped . | . . . . . . Power Chain Reactions 3 | . . . . . 3 Alert | -11 -10 -10 -10 -9 -8 ------- Run | Yrd Mat Min Exi Min Mat Maximum Alert Level . | . . . . . . Low Security (%) 100 | 100 100 100 . 100 100 Level 1 . | . . . . . . Level 2 . | . . . . . . Level 3 . | . . . . . . Level 4 . | . . . . . . Level 5 . | . . . . . . High Security . | . . . . . . Max Security . | . . . . . . Peak Influence 165 | . . 110 . 81 165 Initial 31 | . . . . . 31 Average 43 | . . 65 . 5 58 Influence Increases 829 | . . 150 . 91 588 Destroy 0b10 Robot/C 480 | . . 100 . 60 320 Destroy 0b10 Robot/NC 45 | . . . . . 45 Destroy Leader 80 | . . 20 . 10 50 Successful Hack 3 | . . . . . 3 Disable Machine 45 | . . . . . 45 Destroy Structure 176 | . . 30 . 21 125 Influence Decreases 742 | . . 80 70 10 582 Entered New Map 120 | . . . 70 . 50 Time Decay 442 | . . 80 . 10 352 Lost Part 180 | . . . . . 180 Squads Dispatched 3 | . 1 . . . 2 Investigation . | . . . . . . Extermination . | . . . . . . Reinforcement 3 | . 1 . . . 2 Assault . | . . . . . . Garrison . | . . . . . . Intercept . | . . . . . . Searches Triggered . | . . . . . . Construction Impeded 1 | . . . . . 1 Haulers Reinforced . | . . . . . . Active Scanning Responses . | . . . . . . Cargo Convoy Interrupts . | . . . . . . Stealth | -11 -10 -10 -10 -9 -8 --------- Run | Yrd Mat Min Exi Min Mat Distress Signals 2 | . . . . . 2 Communications Jammed . | . . . . . . Distress Signals . | . . . . . . Times Spotted 45 | . 1 10 . 3 31 Peak Tracking Total 6 | . 1 6 . 3 6 Tactical Retreats . | . . . . . . Traps | -11 -10 -10 -10 -9 -8 ------- Run | Yrd Mat Min Exi Min Mat Traps Triggered . | . . . . . . Indirectly . | . . . . . . Trap Hack Attempts . | . . . . . . Triggered . | . . . . . . Disarmed . | . . . . . . Reprogrammed . | . . . . . . Reused . | . . . . . . Traps Extracted . | . . . . . . Installed . | . . . . . . Triggered . | . . . . . . Machines | -11 -10 -10 -10 -9 -8 ---------- Run | Yrd Mat Min Exi Min Mat Machines Disabled 3 | . . . . . 3 Max in Single Turn 1 | . . . . . 1 Machines Repaired . | . . . . . . Machines Dismantled . | . . . . . . Machines Sabotaged . | . . . . . . Overloaded Fab Kills . | . . . . . . Hacking | -11 -10 -10 -10 -9 -8 --------- Run | Yrd Mat Min Exi Min Mat Machines Accessed 3 | . 1 . 1 . 1 Terminals 2 | . 1 . . . 1 Fabricators . | . . . . . . Repair Stations . | . . . . . . Recycling Units . | . . . . . . Scanalyzers . | . . . . . . Garrison Access . | . . . . . . Total Hacks 5 | . 1 . 1 . 3 Successful 5 | . 1 . 1 . 3 Failed . | . . . . . . Catastrophic . | . . . . . . Database Lockouts . | . . . . . . Manual 1 | . . . 1 . . Terminals 4 | . 1 . . . 3 Fabricators . | . . . . . . Repair Stations . | . . . . . . Recycling Units . | . . . . . . Scanalyzers . | . . . . . . Garrison Access . | . . . . . . Terminal Hacks 5 | . 1 . 1 . 3 Record 4 | . 1 . . . 3 Proto ID Catalog 1 | . . . 1 . . Fabricator Hacks . | . . . . . . Repair Station Hacks . | . . . . . . Recycling Unit Hacks . | . . . . . . Scanalyzer . | . . . . . . Garrison Access Hacks . | . . . . . . Unauthorized Hacks . | . . . . . . Terminals . | . . . . . . Fabricators . | . . . . . . Repair Stations . | . . . . . . Recycling Units . | . . . . . . Scanalyzers . | . . . . . . Garrison Access . | . . . . . . Data Cores Recovered . | . . . . . . Used . | . . . . . . Hacking Detections 2 | . 1 . . . 1 Full Trace Events . | . . . . . . Feedback Events . | . . . . . . Feedback Blocked . | . . . . . . Robot Schematics Acquired . | . . . . . . Robots Built . | . . . . . . Authchips . | . . . . . . Time . | . . . . . . Total Robot Build Rating . | . . . . . . Part Schematics Acquired . | . . . . . . Parts Built . | . . . . . . Authchips . | . . . . . . Time . | . . . . . . Total Part Build Rating . | . . . . . . Part Studies Acquired . | . . . . . . Parts Repaired . | . . . . . . Time . | . . . . . . Parts Recycled . | . . . . . . Recycled Matter . | . . . . . . Retrieved Matter . | . . . . . . Retrieved Components . | . . . . . . Parts Scanalyzed . | . . . . . . Part Schematics Acquired . | . . . . . . Parts Damaged . | . . . . . . Bothacking | -11 -10 -10 -10 -9 -8 ------------ Run | Yrd Mat Min Exi Min Mat Used RIF Installer . | . . . . . . Robots Hacked . | . . . . . . Non-combat . | . . . . . . Combat . | . . . . . . Robot Hacks Applied . | . . . . . . Relay Couplers Released . | . . . . . . Fabnet Peak Effective % . | . . . . . . Robots Rewired . | . . . . . . Allies Hacked . | . . . . . . Hacks Repelled . | . . . . . . Allies | -11 -10 -10 -10 -9 -8 -------- Run | Yrd Mat Min Exi Min Mat Total Allies . | . . . . . . Largest Group . | . . . . . . Highest-Rated Group . | . . . . . . Highest-Rated Ally . | . . . . . . Total Orders . | . . . . . . Ally Attacks . | . . . . . . Total Damage . | . . . . . . Kills . | . . . . . . Allies Corrupted . | . . . . . . Allies Melted . | . . . . . . Intel | -11 -10 -10 -10 -9 -8 ------- Run | Yrd Mat Min Exi Min Mat Active Infowar (turns) . | . . . . . . Robot Analysis Total . | . . . . . . Derelict Logs Recovered . | . . . . . . Drone Launches . | . . . . . . Drone Recoveries . | . . . . . . Exploration | -11 -10 -10 -10 -9 -8 ------------- Run | Yrd Mat Min Exi Min Mat Turns Passed 2058 | 48 147 171 265 334 1093 Spaces Moved 964 | 44 115 107 220 170 308 Core 137 | 24 . . . . 113 Treads . | . . . . . . Legs 802 | 20 115 107 220 170 170 Wheels 5 | . . . . . 5 Hover 7 | . . . . . 7 Flight 13 | . . . . . 13 Fastest Speed 50 | 50 120 120 120 120 80 Average Speed 174 | 81 120 120 120 120 294 Slowest Speed 500 | 120 120 120 120 120 500 Overloaded Moves . | . . . . . . Propulsion Burnouts . | . . . . . . Robots Hopped . | . . . . . . Potential Cave-ins . | . . . . . . Cave-ins Triggered . | . . . . . . Exploration Rate (%) 32 | 3 29 50 41 34 36 Regions Visited 5 Branch Regions 3 Pre-discovered Areas 1 | . . . . 1 . Known Exits Taken . | . . . . . . Unknown Exits Taken 5 | 1 1 1 1 1 . Scrap Searched 2 | . . 1 . 1 . Spaces Dug . | . . . . . . Terrain Destroyed 195 | . . 39 . 29 127 Melee . | . . . . . . Projectile 1 | . . . . . 1 AOE 194 | . . 39 . 29 126 Terrain Rammed . | . . . . . . Walls Destroyed . | . . . . . . Machines Disabled . | . . . . . . Actions | -11 -10 -10 -10 -9 -8 --------- Run | Yrd Mat Min Exi Min Mat Total 1229 | 55 123 125 221 291 414 Wait 126 | . . . . 116 10 Move 959 | 43 114 106 219 169 308 Hop . | . . . . . . Pick Up 37 | 6 6 2 . . 23 Fast Attach 3 | 2 . . 1 . . Attach 25 | 4 1 . . . 20 Detach . | . . . . . . Swap 14 | . 2 5 . 2 5 Drop 5 | . . 1 1 . 3 Fire 60 | . . 11 . 4 45 Melee . | . . . . . . Ram . | . . . . . . Kick . | . . . . . . Crush . | . . . . . . Escape Stasis . | . . . . . . Rewire . | . . . . . . Trap . | . . . . . . Miscellaneous . | . . . . . . Route ------- -11/Scrapyard -10/Materials -10/Mines -10/Exiles -9/Mines -8/Materials (discovered 1 exit: [*Fac]) History --------- Turn | Location | Event 12 | -11/Scrapyard | Discovered new exit (range 15) 49 | -11/Scrapyard | Entered Materials 140 | -10/Materials | Discovered new exit (range 6) 196 | -10/Materials | Entered Mines 212 | -10/Mines | Assembled infested the area 228 | -10/Mines | Found DCF Scrap (12 items) 245 | -10/Mines | Met a Derelict bent on vengeance 314 | -10/Mines | Build established: Mutant 361 | -10/Mines | Deemed a non-threat by the Exiles lab entrance 362 | -10/Mines | Discovered new exit (range 5) 367 | -10/Mines | Entered Exiles 396 | -10/Exiles | Met 8R-AWN 417 | -10/Exiles | Met EX-HEX 451 | -10/Exiles | Met EX-BIN 467 | -10/Exiles | Aligned with FarCom system 468 | -10/Exiles | Given EX-Vault access code 498 | -10/Exiles | Opened EX-Vault 507 | -10/Exiles | Found Superbattery 531 | -10/Exiles | Warned to stay clear of 0b10 Research branches 614 | -10/Exiles | Discovered new exit (range 15) 632 | -10/Exiles | Left Exiles lab with Superbattery 632 | -10/Exiles | Entered Mines 633 | -9/Mines | Learned location of Storage (-7) 939 | -9/Mines | Discovered new exit (range 8) 966 | -9/Mines | Entered Materials 966 | -8/Materials | Evolved 4 slots: Power x1, Utility x2, Weapon x1 1128 | -8/Materials | Lost 4 parts (2n2w) 1443 | -8/Materials | Build established: Skirmisher 1759 | -8/Materials | Core integrity fell below 50% 1812 | -8/Materials | Lost 11 parts (3p1n1u6w) 1986 | -8/Materials | Core integrity fell below 20% 1988 | -8/Materials | Discovered new exit (range 12) 2059 | -8/Materials | Destroyed by H-55 Commando with Gauss Rifle Last Messages --------------- K-01 Serf collects debris. C-30 ARC bursts open, deploying its payload. L-31 Rogue unfolds itself. G-47 Trooper unfolds itself. K-01 Serf collects debris. Aluminum Leg destroyed. Critical hit (Burn: +37). Broken Lgt. Nuclear Core destroyed. Critical hit (Burn: +37). Shock Rifle destroyed. O-16 Technician: "IFF HANDSHAKE FAILED. SECURING TERMINAL." ALERT: Hostiles spotted, dispatching reinforcements to Terminal M001. Lgt. Armor Plating destroyed. Slug penetrates Wall. Broken Med. Laser destroyed. W-25 Informer sends out distress signal. Aluminum Leg destroyed. Slug penetrates Wall. Map ----- +----------------------------------------------------+ | | | | | | | | | | | | | | | | | | | | | | | | | ?????????????????????????????????????????????????? | | ?????????????????????????????????????????????????? | | ?????????????????????????????????????????????????? | | ?????????????????????????????????????????????????? | | ?????????????????????????????????????????????????? | | ?????????????????????????????????????????????????? | | ?????????????????????????????????????????????????? | | ?????????####????????????????????????????????????? | | ?????????? ?????????????????#####??????????????? | | ??????????# ?????????????????# #??????????????? | | ??????????# ??????? ????????# < #??????????????? | | ??????????# ########+######### h #o "????????? | | ??????????# # /t ????????? | | ??????????# l@ #??????????????? | | ??????????# g #??????????????? | | ??????????# g #???????Y??????? | | ??????????# " " """ #??????????????? | | ??????????# """"""""" #??????????????? | | ??????????# %%% " " #??????????????? | | ??######### t ################ | | ??# ^^ % % | | + = k | | ??# ^ u % w | | ??####+###########+##### #####+################# | | ???????????????????????# #??"" ??????????????# | | ???????????????????????#k #?"""???????????????# | | ???????????????????????# # ""?????Y??????????# | | ???????????????????????# # ?????????????????# ! | | ???????????????????????# # ?????????????????# ! | | ???????????????????????# # ??????????????????# ! | | ???????????????????????# #???????????????????### | | ???????????????????????# #?????????????????????# | | ???????????????????????# #?????????????????##### | | ???????????????????????+ #?????????????????#] | | ???????????????????????? ??????????????????# | | ?????????????????????????????????????????????# | | ?????????????????????????????????????????????# | | ?????????????????????????????????????????????##### | +----------------------------------------------------+ Best States ------------- Heat Dissipation 41 Energy Generation 21 Energy Capacity 1900 Matter Stores 300 Matter Capacity 300 Sight Range 16 Terrain Scan Density 10 Armor Coverage 150 Evasion (%) 55 Targeting Accuracy 5 Particle Charging 15 Item Schematics ----------------- None Robot Schematics ------------------ None Fabricated ------------ Nothing Repaired ---------- Nothing Studied --------- None Alien Tech Used ----------------- None Achievements -------------- Hydra Overwhelming Challenges ------------ None Game ------ Seed SpikedTrackerArticulator Manual? 0 Play Time 00:17:59 Cumulative 5.2 hours Start 2026.02.10 @ 13:07:25 End 2026.02.10 @ 13:22:47 Sessions 1 Manual Loads 0 Difficulty Rogue Special Mode None Game No. 19 Rogue 19 Adventurer 0 Explorer 0 Win Type - Total 0 Types 0/0/0/0/0/0/0/0/0/0 Lore% 8 Gallery% 11 Achievement% 8 Wizard Run 0 Options --------- Layout 1 ASCII 1 Keyboard 0 Movement Mouse Keybinds 0 Fullscreen 1 Font 16/SmallcapsGlow Map View 55x38 Zoom Use 0% Tactical HUD 0 Map Filters NONE Filters NONE Steam 1 RUN: 349ae989-d617-42e9-bc20-dbac2b96eb28